bitfinex/quotes_BTCUSD_20250422
["timestamp","ask_amount","ask_price","bid_price","bid_amount"]
[1745292240868,1e-08,88039.0,88038.0,1.14455462]
[1745292241283,1e-08,88039.0,88038.0,1.14555462]
[1745292241690,1e-08,88039.0,88038.0,1.14455462]
[1745292242249,1e-08,88039.0,88038.0,1.14555462]
[1745292242585,0.00100001,88039.0,88038.0,0.96697286]
[1745292242818,0.00100001,88039.0,88038.0,0.55027286]
[1745292243316,0.00100001,88039.0,88038.0,0.44899286]
[1745292243535,0.04760001,88039.0,88038.0,0.002]
[1745292243743,0.04860001,88039.0,88038.0,0.002]
[1745292244672,0.04860001,88039.0,88038.0,0.001]
[1745292244868,0.01135898,88036.0,88032.0,0.22718819]
[1745292245303,0.01035898,88036.0,88032.0,0.22718819]
[1745292245433,0.01135886,88037.0,88033.0,0.22718535]
[1745292245655,0.05995861,88039.0,88033.0,0.22718535]
[1745292246086,0.01135873,88038.0,88033.0,0.22718535]
[1745292246507,0.01135886,88037.0,88033.0,0.22718535]
[1745292246714,0.01135898,88036.0,88032.0,0.22718819]
[1745292248224,0.01135873,88038.0,88034.0,0.22718452]
[1745292248587,0.00200001,88039.0,88036.0,0.01135898]
[1745292248812,0.00200001,88039.0,88037.0,0.22717464]
[1745292251660,0.00200001,88039.0,88038.0,0.34]
[1745292253073,0.00300001,88039.0,88038.0,0.34]
[1745292253725,0.00300001,88039.0,88038.0,0.3859]
[1745292254721,0.01144851,88039.0,88038.0,0.49965594]
[1745292257544,0.01144851,88039.0,88038.0,0.51419679]
[1745292257751,1.47287253,88040.0,88039.0,0.58171289]
[1745292257952,1.47287253,88040.0,88039.0,0.74506883]
[1745292258200,0.00078675,88040.0,88039.0,1.20866883]
[1745292258401,0.0004226,88045.0,88044.0,0.58169999]
[1745292258595,0.0004226,88045.0,88044.0,0.69545593]
[1745292260241,0.0004226,88045.0,88044.0,0.69645593]
[1745292260882,0.0004226,88045.0,88044.0,0.69745593]
[1745292263221,0.0004226,88045.0,88044.0,0.74335593]
[1745292270864,0.0004226,88045.0,88044.0,0.74435593]
[1745292272721,0.0004226,88045.0,88044.0,0.84551593]
[1745292275576,0.0004226,88045.0,88044.0,0.23015914]
[1745292275836,0.0004226,88045.0,88044.0,0.33131914]
[1745292276254,0.0004226,88045.0,88044.0,0.67131914]
[1745292276711,0.0004226,88045.0,88044.0,0.33131914]
[1745292277448,0.0500224,88052.0,88050.0,0.34]
[1745292277668,0.05048015,88052.0,88050.0,0.34]
[1745292278849,0.05048015,88052.0,88050.0,0.341]
[1745292279074,0.05048015,88052.0,88050.0,0.56914192]
[1745292280609,0.05048015,88052.0,88050.0,0.002]
[1745292281669,0.05048015,88052.0,88050.0,0.001]
[1745292281883,0.05048015,88052.0,88049.0,0.01990273]
[1745292282086,0.05048015,88052.0,88050.0,0.001]
[1745292282858,0.05048015,88052.0,88049.0,0.01990273]
[1745292283002,0.05048015,88052.0,88049.0,0.24704707]
[1745292283220,0.05048015,88052.0,88049.0,0.24804707]
[1745292284433,0.05048015,88052.0,88049.0,0.24704707]
[1745292284642,0.05048015,88052.0,88050.0,0.0085774]
[1745292285624,0.05048015,88052.0,88050.0,0.0075774]
[1745292285941,0.05048015,88052.0,88050.0,0.0085774]
[1745292286143,0.05048015,88052.0,88051.0,0.34]
[1745292287509,0.05048015,88052.0,88050.0,0.0085774]
[1745292288740,0.05048015,88052.0,88050.0,0.0095774]
[1745292289753,0.04290275,88052.0,88050.0,0.002]
[1745292293233,0.00045775,88052.0,88051.0,0.56714108]
[1745292294862,0.00045775,88052.0,88050.0,0.001]
[1745292295069,0.00045775,88052.0,88051.0,0.00227104]
[1745292295277,0.00045775,88052.0,88051.0,0.22941212]
[1745292299240,0.00045775,88052.0,88051.0,0.22714108]
[1745292299669,0.00045775,88052.0,88051.0,0.22941212]
[1745292300562,0.00045775,88052.0,88051.0,0.22714108]
[1745292302158,0.00045775,88052.0,88051.0,0.22941212]
[1745292302806,0.0008226,88054.0,88053.0,0.56713592]
[1745292302984,0.00095984,88054.0,88053.0,0.56713592]
[1745292305573,0.00095984,88054.0,88053.0,0.34]
[1745292305987,0.22714108,88051.0,88050.0,0.001]
[1745292306234,0.27244108,88051.0,88050.0,0.10208]
[1745292307962,0.27244108,88051.0,88050.0,0.001]
[1745292308471,0.31784108,88051.0,88050.0,0.001]
[1745292308930,0.43159702,88051.0,88050.0,0.001]
[1745292310978,0.43359702,88051.0,88050.0,0.001]
[1745292311453,0.43259702,88051.0,88050.0,0.001]
[1745292311809,0.43159702,88051.0,88050.0,0.001]
[1745292312890,0.43359702,88051.0,88050.0,0.001]
[1745292313183,0.84209702,88051.0,88050.0,0.001]
[1745292318697,0.79669702,88051.0,88050.0,0.001]
[1745292318896,0.68294108,88051.0,88050.0,0.001]
[1745292319100,0.27544108,88051.0,88050.0,0.001]
[1745292319957,0.38919702,88051.0,88050.0,0.001]
[1745292320377,0.43629702,88051.0,88050.0,0.001]
[1745292324967,0.84379702,88051.0,88050.0,0.001]
[1745292330836,0.22719011,88032.0,88031.0,0.38039258]
[1745292331281,0.22719011,88032.0,88031.0,0.38139258]
[1745292331657,0.22719011,88032.0,88031.0,0.00691258]
[1745292335181,0.01135989,88029.0,88027.0,0.34]
[1745292336503,0.01135989,88029.0,88027.0,0.001]
[1745292336694,0.23855937,88029.0,88027.0,0.001]
[1745292337039,0.01135989,88029.0,88027.0,0.001]
[1745292337464,0.01135989,88029.0,88027.0,0.002]
[1745292338746,0.01135937,88033.0,88030.0,0.01135976]
[1745292338960,0.01135821,88042.0,88035.0,0.01135911]
[1745292339168,0.01135821,88042.0,88036.0,0.22717979]
[1745292339340,0.01135847,88040.0,88037.0,0.34]
[1745292339559,0.01135821,88042.0,88037.0,0.35135886]
[1745292339560,0.01135834,88041.0,88037.0,0.35135886]
[1745292339748,0.01135808,88043.0,88038.0,0.28783335]
[1745292339968,0.01135821,88042.0,88038.0,0.28783335]
[1745292341301,0.01135834,88041.0,88038.0,0.0493]
[1745292343812,0.01235834,88041.0,88038.0,0.0493]
[1745292345446,0.001,88041.0,88038.0,0.27647458]
[1745292345671,0.001,88041.0,88040.0,0.56716946]
[1745292347030,0.01135744,88048.0,88045.0,0.34]
[1745292349182,0.01135718,88050.0,88045.0,0.5785122]
[1745292350063,0.01135718,88050.0,88047.0,0.22715097]
[1745292350425,0.01135705,88051.0,88047.0,0.23850854]
[1745292350826,0.01135731,88049.0,88045.0,0.56715438]
[1745292351022,0.23849987,88051.0,88047.0,0.34]
[1745292352000,0.01135718,88050.0,88047.0,0.34]
[1745292353322,0.01235705,88051.0,88047.0,0.56714937]
[1745292353803,0.01235705,88051.0,88047.0,0.34]
[1745292354017,0.01135718,88050.0,88047.0,0.34]
[1745292354223,0.01235718,88050.0,88047.0,0.34]
[1745292354793,0.01135718,88050.0,88047.0,0.34]
[1745292355000,0.01135705,88051.0,88047.0,0.56714962]
[1745292355236,0.01235705,88051.0,88047.0,0.56714962]
[1745292355924,0.01135718,88050.0,88047.0,0.34]
[1745292356352,0.01135757,88047.0,88044.0,0.10104]
[1745292356566,0.01135757,88047.0,88045.0,0.34]
[1745292356567,0.22715441,88046.0,88045.0,0.34]
[1745292356774,0.22715441,88046.0,88044.0,0.10104]
[1745292359021,0.22715441,88046.0,88035.0,0.01135911]
[1745292359022,0.01135834,88041.0,88037.0,0.34]
[1745292359220,0.01135847,88040.0,88037.0,0.34]
[1745292359470,0.22717204,88039.0,88037.0,0.34]
[1745292359873,0.01135847,88040.0,88037.0,0.34]
[1745292361195,0.01035886,88037.0,88035.0,0.34]
[1745292361395,0.23853064,88039.0,88035.0,0.34]
[1745292361595,0.0113586,88039.0,88035.0,0.35135911]
[1745292361828,0.0113586,88039.0,88035.0,0.34]
[1745292361996,0.0113586,88039.0,88035.0,0.57853923]
[1745292362213,0.01135834,88041.0,88037.0,0.34]
[1745292362787,0.01135847,88040.0,88037.0,0.34]
[1745292362985,0.23852969,88040.0,88037.0,0.34]
[1745292363221,0.22717979,88036.0,88035.0,0.001]
[1745292364378,0.01135847,88040.0,88037.0,0.34]
[1745292365365,0.01135898,88036.0,88032.0,0.34]
[1745292367543,0.01135911,88035.0,88032.0,0.34]
[1745292368407,0.01135898,88036.0,88032.0,0.56718808]
[1745292369346,0.01135886,88037.0,88033.0,0.22718582]
[1745292375454,0.01135886,88037.0,88034.0,0.34]
[1745292375675,0.01135873,88038.0,88034.0,0.57854222]
[1745292377560,0.01135873,88038.0,88034.0,0.56718298]
[1745292377946,0.01135886,88037.0,88034.0,0.56718298]
[1745292378885,0.0113586,88039.0,88036.0,0.34]
[1745292379805,0.01135873,88038.0,88035.0,0.35135911]
[1745292380075,0.01135847,88040.0,88036.0,0.22717979]
[1745292380780,0.22716457,88042.0,88036.0,0.22717979]
[1745292380986,0.01135834,88041.0,88037.0,0.23853412]
[1745292381197,0.01135847,88040.0,88037.0,0.22717526]
[1745292381697,0.01135847,88040.0,88036.0,0.01135898]
[1745292382445,0.0113586,88039.0,88036.0,0.01135898]
[1745292386887,0.01135834,88041.0,88036.0,0.23853647]
[1745292387051,0.01135769,88046.0,88042.0,0.01135821]
[1745292387251,0.01135769,88046.0,88042.0,0.23852065]
[1745292387436,0.01135782,88045.0,88041.0,0.23852493]
[1745292388249,0.01135795,88044.0,88041.0,0.23852493]
[1745292388662,0.01135782,88045.0,88041.0,0.22716659]
[1745292388866,0.01135795,88044.0,88041.0,0.22716659]
[1745292389259,0.01135808,88043.0,88039.0,0.23853016]
[1745292389454,0.01135821,88042.0,88038.0,0.01135873]
[1745292389698,0.01135834,88041.0,88039.0,0.01061187]
[1745292390377,0.01135834,88041.0,88037.0,0.35135886]
[1745292390973,0.001,88041.0,88037.0,0.23853428]
[1745292391340,0.01135821,88042.0,88037.0,0.23853428]
[1745292391477,0.01135834,88041.0,88037.0,0.23853428]
[1745292392900,0.01235834,88041.0,88037.0,0.23853428]
[1745292393575,0.01135834,88041.0,88037.0,0.23853428]
[1745292393881,0.01135834,88041.0,88037.0,0.22717542]
[1745292394697,0.01135847,88040.0,88036.0,0.35135898]
[1745292397172,0.01135821,88042.0,88038.0,0.01135873]
[1745292397355,0.01135847,88040.0,88039.0,0.01060894]
[1745292397491,0.23853015,88040.0,88039.0,0.01060894]
[1745292398391,0.23853015,88040.0,88036.0,0.01135898]
[1745292399089,0.23953015,88040.0,88036.0,0.01135898]
[1745292399311,0.0113586,88039.0,88035.0,0.57853976]
[1745292400083,0.01235847,88040.0,88037.0,0.34]
[1745292400420,0.01135847,88040.0,88037.0,0.34]
[1745292400832,0.01135847,88040.0,88038.0,0.01060966]
[1745292401669,0.0113586,88039.0,88036.0,0.34]
[1745292403670,0.0113586,88039.0,88036.0,0.56717822]
[1745292405309,0.0113586,88039.0,88034.0,0.01135924]
[1745292405310,0.01135911,88035.0,88034.0,0.34]
[1745292406344,0.0113595,88032.0,88030.0,0.34]
[1745292407085,0.01089869,88032.0,88030.0,0.34]
[1745292407706,0.23808887,88032.0,88030.0,0.34]
[1745292407912,0.01089869,88032.0,88030.0,0.34]
[1745292408268,0.01135937,88033.0,88030.0,0.34]
[1745292409538,0.01135924,88034.0,88030.0,0.34]
[1745292410441,0.01135924,88034.0,88030.0,0.56719294]
[1745292411651,0.23854444,88034.0,88030.0,0.34]
[1745292411859,0.01135937,88033.0,88030.0,0.34]
[1745292412081,0.01135924,88034.0,88030.0,0.56719281]
[1745292412518,0.01135924,88034.0,88030.0,0.57855257]
[1745292412747,0.01135937,88033.0,88030.0,0.34]
[1745292412990,0.01136118,88019.0,88009.0,0.047345]
[1745292413215,0.01136144,88017.0,88016.0,0.10084]
[1745292413444,0.23857942,88021.0,88016.0,0.10084]
[1745292413664,0.23858394,88020.0,88017.0,0.34]
[1745292413880,0.01136079,88022.0,88017.0,0.22722883]
[1745292414087,0.01136066,88023.0,88018.0,0.34]
[1745292414509,0.01136079,88022.0,88018.0,0.34]
[1745292414656,0.01136079,88022.0,88017.0,0.22768658]
[1745292414657,0.01136092,88021.0,88017.0,0.22768658]
[1745292414868,0.01136092,88021.0,88017.0,0.56768658]
[1745292415107,0.01136092,88021.0,88018.0,0.34]
[1745292416749,0.01136105,88020.0,88018.0,0.34]
[1745292418306,0.23858246,88020.0,88017.0,0.00045775]
[1745292418504,0.01136105,88020.0,88017.0,0.34045775]
[1745292418631,0.23630118,88022.0,88016.0,0.227231]
[1745292419334,0.01136105,88020.0,88016.0,0.227231]
[1745292422191,0.00908276,88022.0,88018.0,0.22722463]
[1745292422401,0.01136092,88021.0,88018.0,0.22722463]
[1745292422590,0.23857443,88023.0,88019.0,0.2272219]
[1745292423212,0.01136066,88023.0,88019.0,0.2272219]
[1745292423423,0.01136079,88022.0,88019.0,0.2272219]
[1745292423854,0.01136079,88022.0,88019.0,0.22722315]
[1745292424075,0.01136079,88022.0,88017.0,0.22722722]
[1745292424076,0.01136092,88021.0,88017.0,0.22722722]
[1745292425034,0.01136079,88022.0,88018.0,0.22722369]
[1745292425247,0.01136092,88021.0,88018.0,0.22722369]
[1745292426125,0.01136118,88019.0,88015.0,0.34]
[1745292426335,0.01136092,88021.0,88015.0,0.56723177]
[1745292426536,0.01136118,88019.0,88015.0,0.56723177]
[1745292426749,0.01136105,88020.0,88017.0,0.34]
[1745292427157,0.01136092,88021.0,88018.0,0.22722624]
[1745292427617,0.01136105,88020.0,88017.0,0.34]
[1745292429673,0.23858214,88020.0,88017.0,0.34]
[1745292429879,0.01136105,88020.0,88017.0,0.34]
[1745292432858,0.01136144,88017.0,88015.0,0.34]
[1745292433068,0.01136131,88018.0,88015.0,0.34]
[1745292433276,0.01136118,88019.0,88015.0,0.34]
[1745292433634,0.01136118,88019.0,88015.0,0.56723213]
[1745292435255,0.23858755,88018.0,88015.0,0.34]
[1745292435457,0.01136131,88018.0,88015.0,0.34]
[1745292435662,0.01136118,88019.0,88015.0,0.34]
[1745292436449,0.23858755,88018.0,88015.0,0.34]
[1745292437062,0.01136131,88018.0,88015.0,0.34]
[1745292437422,0.01136118,88019.0,88015.0,0.34]
[1745292439723,0.01136131,88018.0,88015.0,0.34]
[1745292440230,0.22722883,88017.0,88015.0,0.34]
[1745292440447,0.01136144,88017.0,88014.0,0.00089077]
[1745292444361,0.23859067,88017.0,88014.0,0.00089077]
[1745292445651,0.01136144,88017.0,88015.0,0.34]
[1745292446338,0.22723399,88015.0,88014.0,0.00089077]
[1745292446555,0.27703399,88015.0,88014.0,0.00089077]
[1745292448513,0.27803399,88015.0,88014.0,0.00089077]
[1745292449533,0.27903399,88015.0,88014.0,0.00089077]
[1745292453838,0.39278993,88015.0,88014.0,0.00089077]
[1745292454829,0.43868993,88015.0,88014.0,0.00089077]
[1745292456567,0.22923399,88015.0,88014.0,0.00089077]
[1745292465979,0.002,88015.0,88014.0,0.00089077]
[1745292466182,0.002,88015.0,88014.0,0.04649077]
[1745292466725,0.01135834,88041.0,88036.0,0.01135898]
[1745292466931,0.01135834,88041.0,88033.0,0.35135937]
[1745292466932,0.23853537,88038.0,88033.0,0.35135937]
[1745292467133,0.01135873,88038.0,88034.0,0.01135924]
[1745292467451,0.01135873,88038.0,88034.0,0.57854213]
[1745292467782,0.0113586,88039.0,88034.0,0.57854213]
[1745292467933,0.0113586,88039.0,88036.0,0.22717943]
[1745292468161,0.001,88038.0,88036.0,0.22717943]
[1745292468342,0.01135795,88044.0,88040.0,0.01135847]
[1745292468744,0.01135808,88043.0,88039.0,0.22717016]
[1745292468983,0.01135808,88043.0,88039.0,0.23852876]
[1745292470524,0.01135808,88043.0,88039.0,0.25177567]
[1745292470666,0.01135795,88044.0,88040.0,0.22716723]
[1745292470864,0.01135795,88044.0,88040.0,0.2385257]
[1745292471228,0.01135808,88043.0,88039.0,0.25177567]
[1745292471368,0.23891081,88055.0,88039.0,0.24041707]
[1745292471575,0.0008226,88054.0,88044.0,0.01135795]
[1745292471776,0.0008226,88054.0,88052.0,0.2271385]
[1745292472806,0.00088045,88053.0,88052.0,0.2271385]
[1745292473014,0.00288045,88053.0,88050.0,0.22714143]
[1745292473260,0.00288045,88053.0,88052.0,0.0463]
[1745292473631,0.00288045,88053.0,88052.0,0.04857128]
[1745292473832,0.00288045,88053.0,88052.0,0.00227128]
[1745292474114,0.00288045,88053.0,88052.0,0.10068]
[1745292474415,0.00188045,88053.0,88052.0,0.10068]
[1745292474618,0.00088045,88053.0,88052.0,0.14975131]
[1745292474961,0.00088045,88053.0,88052.0,0.48975131]
[1745292475165,0.00188045,88053.0,88052.0,0.48748]
[1745292475613,0.00088045,88053.0,88052.0,0.48748]
[1745292484514,0.00088045,88053.0,88052.0,0.60123594]
[1745292489332,3.0004226,88060.0,88058.0,0.34]
[1745292489544,3.00055987,88060.0,88059.0,0.73027639]
[1745292489720,2.94461987,88060.0,88059.0,0.74481724]
[1745292490288,2.94461987,88060.0,88059.0,0.73027639]
[1745292490690,2.94461987,88060.0,88059.0,0.83079639]
[1745292491255,2.94461987,88060.0,88059.0,0.83930915]
[1745292491788,2.94461987,88060.0,88059.0,0.78990915]
[1745292494215,2.7852601,88060.0,88059.0,0.89935]
[1745292494364,2.77426044,88060.0,88059.0,0.89935]
[1745292494579,2.71676044,88060.0,88059.0,0.89935]
[1745292495531,2.71676044,88060.0,88059.0,0.90035]
[1745292496609,2.71676044,88060.0,88059.0,0.89935]
[1745292496810,2.71676044,88060.0,88059.0,0.90135]
[1745292497011,2.66004655,88060.0,88059.0,0.90335]
[1745292497410,2.60333266,88060.0,88059.0,0.90335]
[1745292497652,2.60333266,88060.0,88059.0,0.90135]
[1745292497955,2.50625266,88060.0,88059.0,0.90135]
[1745292498091,2.50625266,88060.0,88059.0,0.90335]
[1745292498295,2.44953877,88060.0,88059.0,0.90335]
[1745292498750,2.39282488,88060.0,88059.0,0.90335]
[1745292499147,2.33611759,88060.0,88059.0,0.90335]
[1745292499353,2.2794103,88060.0,88059.0,0.90335]
[1745292499705,2.22270301,88060.0,88059.0,0.90335]
[1745292500107,2.16599572,88060.0,88059.0,0.90335]
[1745292500533,2.10928843,88060.0,88059.0,0.90335]
[1745292500894,2.05258114,88060.0,88059.0,0.90335]
[1745292501055,1.99587385,88060.0,88059.0,0.90335]
[1745292501255,1.9797584,88060.0,88059.0,0.90335]
[1745292501944,1.92305111,88060.0,88059.0,0.90335]
[1745292502077,1.86634382,88060.0,88059.0,0.90335]
[1745292502473,1.80963653,88060.0,88059.0,0.90335]
[1745292502680,1.80963653,88060.0,88059.0,0.35338915]
[1745292502878,1.80963653,88060.0,88059.0,0.004]
[1745292503080,1.80963653,88060.0,88059.0,0.10452]
[1745292503288,1.80963653,88060.0,88059.0,0.44452]
[1745292503531,1.80963653,88060.0,88059.0,0.10452]
[1745292503727,1.80963653,88060.0,88059.0,0.10252]
[1745292504068,1.80963653,88060.0,88059.0,0.32764045]
[1745292504223,1.80963653,88060.0,88059.0,0.33064045]
[1745292504403,1.80963653,88060.0,88059.0,0.003]
[1745292504619,2.0822544,88060.0,88059.0,0.10352]
[1745292504819,2.0822544,88060.0,88059.0,0.10152]
[1745292505070,2.0822544,88060.0,88059.0,0.10252]
[1745292505273,1.80963653,88060.0,88059.0,0.10252]
[1745292505444,1.80963653,88060.0,88059.0,0.44252]
[1745292505992,1.80963653,88060.0,88059.0,0.44152]
[1745292506376,1.80963653,88060.0,88059.0,0.44052]
[1745292506760,1.81063653,88060.0,88059.0,0.44052]
[1745292506956,1.80963653,88060.0,88059.0,0.44052]
[1745292507138,1.81063653,88060.0,88059.0,0.44052]
[1745292510810,2.0377544,88060.0,88059.0,0.10052]
[1745292514194,2.0377544,88060.0,88049.0,0.01135731]
[1745292514195,1.81063653,88060.0,88040.0,0.23852575]
[1745292514403,0.01135782,88045.0,88044.0,0.14824]
[1745292514789,0.23850831,88048.0,88045.0,0.34]
[1745292515277,0.22715377,88047.0,88045.0,0.34]
[1745292515685,0.01135692,88052.0,88047.0,0.01135757]
[1745292515888,0.01135692,88052.0,88045.0,0.34]
[1745292516264,0.01135718,88050.0,88046.0,0.01135769]
[1745292516468,0.01135718,88050.0,88047.0,0.2271514]
[1745292517602,0.01135705,88051.0,88047.0,0.2271514]
[1745292518188,0.01135692,88052.0,88049.0,0.34]
[1745292519441,0.2384849,88056.0,88049.0,0.56714624]
[1745292519644,0.01135653,88055.0,88049.0,0.35135731]
[1745292519850,0.01135653,88055.0,88051.0,0.22713903]
[1745292520059,0.01135679,88053.0,88049.0,0.34]
[1745292520238,0.01135653,88055.0,88050.0,0.01135718]
[1745292520399,0.01135615,88058.0,88054.0,0.01135666]
[1745292520845,0.01135666,88054.0,88050.0,0.01135718]
[1745292521050,0.01135679,88053.0,88049.0,0.34]
[1745292521744,0.01135679,88053.0,88049.0,0.35135731]
[1745292522350,0.01135679,88053.0,88049.0,0.57850109]
[1745292522549,0.01235679,88053.0,88049.0,0.57850109]
[1745292525028,0.01235679,88053.0,88050.0,0.10044]
[1745292526041,0.01135679,88053.0,88050.0,0.10044]
[1745292527511,1.5170529,88060.0,88059.0,0.39984085]
[1745292527740,1.30773746,88060.0,88059.0,0.51359679]
[1745292527947,1.14778751,88060.0,88059.0,0.51359679]
[1745292529473,1.14778751,88060.0,88059.0,0.51559679]
[1745292530146,1.08712214,88060.0,88059.0,0.51759679]
[1745292534578,1.071986,88060.0,88059.0,0.51759679]
[1745292537431,1.071986,88060.0,88059.0,0.004]
[1745292537790,1.071986,88060.0,88059.0,0.1044]
[1745292537996,1.071986,88060.0,88059.0,0.4444]
[1745292538422,1.071986,88060.0,88059.0,0.344]
[1745292538622,1.071986,88060.0,88059.0,0.342]
[1745292538959,1.071986,88060.0,88059.0,0.341]
[1745292539165,1.071986,88060.0,88059.0,0.342]
[1745292539363,1.071986,88060.0,88059.0,0.341]
[1745292539717,1.071986,88060.0,88059.0,0.34]
[1745292540654,0.27472045,88059.0,88057.0,0.10044]
[1745292542608,0.23849065,88054.0,88050.0,0.01235718]
[1745292542813,0.23849065,88054.0,88052.0,0.10044]
[1745292543192,0.01135679,88053.0,88052.0,0.44044]
[1745292543395,0.01135628,88057.0,88054.0,0.01135666]
[1745292543709,0.01135628,88057.0,88053.0,0.01135679]
[1745292544961,0.0113564,88056.0,88052.0,0.67993426]
[1745292545161,0.01135653,88055.0,88052.0,0.44044]
[1745292546013,0.01135653,88055.0,88051.0,0.01135705]
[1745292547471,0.01135628,88057.0,88052.0,0.23849542]
[1745292547615,0.01135615,88058.0,88054.0,0.01135666]
[1745292547811,0.0113564,88056.0,88052.0,0.23849542]
[1745292548236,0.23848466,88056.0,88052.0,0.01135692]
[1745292548443,0.01135666,88054.0,88051.0,0.001]
[1745292548706,0.01135653,88055.0,88051.0,0.2271389]
[1745292549254,0.0113564,88056.0,88052.0,0.23849346]
[1745292549896,0.23848148,88058.0,88052.0,0.23849346]
[1745292550141,0.01135628,88057.0,88053.0,0.01135679]
[1745292550309,0.0113564,88056.0,88052.0,0.23849339]
[1745292550724,0.01135628,88057.0,88053.0,0.57849083]
[1745292551248,0.0113564,88056.0,88053.0,0.56713576]
[1745292552436,0.0113564,88056.0,88053.0,0.34]
[1745292552651,0.01135615,88058.0,88053.0,0.35135679]
[1745292552850,0.01135628,88057.0,88055.0,0.34]
[1745292553642,0.28607676,88059.0,88055.0,0.57848546]
[1745292554235,0.05895602,88059.0,88055.0,0.57848509]
[1745292557858,0.0476,88059.0,88057.0,0.34]
[1745292559426,0.0486,88059.0,88057.0,0.34]
[1745292560385,0.28707858,88059.0,88056.0,0.34]
[1745292560561,0.28707858,88059.0,88055.0,0.23848509]
[1745292560970,0.22712303,88058.0,88051.0,0.2271392]
[1745292561198,0.2384898,88055.0,88051.0,0.01135705]
[1745292561407,0.01135653,88055.0,88050.0,0.01235718]
[1745292561815,0.01135653,88055.0,88051.0,0.23849604]
[1745292562171,0.0113564,88056.0,88052.0,0.01135692]
[1745292564147,0.0113564,88056.0,88052.0,0.238493]
[1745292564701,0.01135679,88053.0,88050.0,0.001]
[1745292564902,0.23849271,88053.0,88050.0,0.001]
[1745292565862,0.23849271,88053.0,88050.0,0.342]
[1745292566267,0.01135679,88053.0,88050.0,0.01335718]
[1745292566779,0.01135679,88053.0,88050.0,0.342]
[1745292569395,0.01135666,88054.0,88050.0,0.35335718]
[1745292569578,0.01135666,88054.0,88050.0,0.58049902]
[1745292569789,0.01135666,88054.0,88051.0,0.01135705]
[1745292570337,0.22711596,88061.0,88052.0,0.01135692]
[1745292570544,0.22712481,88058.0,88054.0,0.22713163]
[1745292570744,0.23848216,88057.0,88053.0,0.22713395]
[1745292570950,0.23847314,88061.0,88057.0,0.01135628]
[1745292571151,0.22712045,88059.0,88056.0,0.34]
[1745292571339,0.23847647,88059.0,88056.0,0.34]
[1745292572543,0.23847647,88059.0,88055.0,0.35135653]
[1745292572717,0.01135602,88059.0,88055.0,0.35135653]
[1745292575185,0.23847839,88059.0,88055.0,0.35135653]
[1745292575413,0.01135615,88058.0,88055.0,0.35135653]
[1745292576464,1.071986,88060.0,88058.0,0.2271207]
[1745292576816,1.071986,88060.0,88057.0,0.23847975]
[1745292577348,1.071986,88060.0,88057.0,0.01135628]
[1745292577599,1.071986,88060.0,88058.0,0.22712303]
[1745292577806,1.071986,88060.0,88057.0,0.35135628]
[1745292578162,1.08434189,88060.0,88057.0,0.35135628]
[1745292578578,1.071986,88060.0,88057.0,0.57848013]
[1745292579425,1.08334189,88060.0,88057.0,0.35135628]
[1745292580071,1.08434189,88060.0,88057.0,0.35135628]
[1745292580550,1.071986,88060.0,88057.0,0.57847975]
[1745292580754,1.072986,88060.0,88057.0,0.57847975]
[1745292581297,1.072986,88060.0,88057.0,0.34]
[1745292581563,1.08434189,88060.0,88057.0,0.34]
[1745292582134,1.072986,88060.0,88057.0,0.57847987]
[1745292582338,1.072986,88060.0,88058.0,0.22712144]
[1745292582546,1.072986,88060.0,88058.0,0.22712303]
[1745292582761,1.072986,88060.0,88059.0,0.34]
[1745292583463,1.071986,88060.0,88059.0,0.34]
[1745292583866,1.072986,88060.0,88059.0,0.34]
[1745292584269,1.071986,88060.0,88059.0,0.34]
[1745292584767,1.072986,88060.0,88059.0,0.34]
[1745292585736,1.01279832,88060.0,88059.0,0.34]
[1745292590298,1.01279832,88060.0,88057.0,0.35135628]
[1745292590509,0.01135615,88058.0,88053.0,0.01135679]
[1745292590715,0.01135615,88058.0,88055.0,0.35135653]
[1745292590923,0.01135602,88059.0,88057.0,0.34]
[1745292592201,0.01135602,88059.0,88056.0,0.0113564]
[1745292592940,0.22712561,88057.0,88055.0,0.34]
[1745292593297,0.01135615,88058.0,88053.0,0.35135679]
[1745292593658,0.01135628,88057.0,88054.0,0.01135666]
[1745292594310,0.01135628,88057.0,88053.0,0.35135679]
[1745292594538,0.23848459,88056.0,88053.0,0.35135679]
[1745292597173,0.01135615,88058.0,88055.0,0.34]
[1745292598660,0.01135628,88057.0,88054.0,0.01135666]
[1745292599490,0.01135615,88058.0,88055.0,0.35135653]
[1745292600029,0.22712561,88057.0,88055.0,0.34]
[1745292600299,0.23847873,88059.0,88055.0,0.35135653]
[1745292601256,0.23847873,88059.0,88055.0,0.57848561]
[1745292602062,0.23847873,88059.0,88055.0,0.35135653]
[1745292602763,0.23847873,88059.0,88056.0,0.0113564]
[1745292603386,0.01135602,88059.0,88056.0,0.0113564]
[1745292604212,0.01135615,88058.0,88055.0,0.35135653]
[1745292609103,0.01135628,88057.0,88054.0,0.01135666]
[1745292609504,0.01135628,88057.0,88054.0,0.35135666]
[1745292610714,0.01135666,88054.0,88052.0,0.34]
[1745292611974,0.01135666,88054.0,88051.0,0.35135705]
[1745292613365,0.01135666,88054.0,88051.0,0.34]
[1745292613564,0.01135666,88054.0,88051.0,0.341]
[1745292613760,0.2384873,88055.0,88052.0,0.01135692]
[1745292615460,0.01135628,88057.0,88052.0,0.23849368]
[1745292615815,0.0113564,88056.0,88052.0,0.23849368]
[1745292616781,0.2384873,88055.0,88052.0,0.01135692]
[1745292617104,0.01135653,88055.0,88052.0,0.23849498]
[1745292618108,0.01135628,88057.0,88054.0,0.34]
[1745292618327,0.00013727,88060.0,88058.0,0.22712303]
[1745292619143,0.00013727,88060.0,88058.0,0.34]
[1745292619368,0.00013727,88060.0,88057.0,0.01135628]
[1745292619556,0.00013727,88060.0,88058.0,0.34]
[1745292620362,0.00013727,88060.0,88058.0,0.56712051]
[1745292621027,0.00013727,88060.0,88058.0,0.34]
[1745292621174,0.00113727,88060.0,88058.0,0.34]
[1745292624344,0.00113727,88060.0,88058.0,0.22712093]
[1745292627480,0.00113727,88060.0,88057.0,0.2384795]
[1745292627666,0.00113727,88060.0,88058.0,0.22712096]
[1745292628264,0.00013727,88060.0,88058.0,0.22712096]
[1745292628665,0.00113727,88060.0,88059.0,0.34]
[1745292630062,0.00013727,88060.0,88059.0,0.34]
[1745292630267,0.00113727,88060.0,88059.0,0.34]
[1745292630488,0.00096001,88060.0,88059.0,0.56329679]
[1745292630729,0.0004,88069.0,88068.0,0.56709724]